{"text_format":"1","workbook":"xlsx","n_sheets":7,"sheets":["ФОРМА","Договор","Приложение 1","Согласие на ОПД","АКТ","222","Лист1"],"not_rendered":{"charts":0,"images":0,"macros":1,"external_links":0,"defined_names":2,"comments":1,"pivot_tables":0},"unopened":[],"bounds":{"document_bytes":16777216,"sheet_cells":100000,"rows_first":2000,"rows_last":500,"rows_between":2000,"halvings":0,"cell_chars":16384,"cell_head_chars":4096},"cells_cut":0,"cells_raw":0,"read":"whole","date_system":"1900"}

{"sheet":"ФОРМА","index":0,"n_rows":72,"n_cols":14,"rows_kept":72,"cut":false,"hidden":false,"merged":[[37,2,37,3],[38,2,38,3],[39,1,39,3],[41,1,41,2],[42,1,42,2],[42,3,42,5],[41,3,41,5],[32,2,32,3],[33,2,33,3],[34,2,34,3],[35,2,35,3],[36,2,36,3],[15,6,15,7],[3,1,3,2],[2,1,2,2],[1,1,1,2],[26,1,26,13],[9,1,9,2],[8,1,8,2],[7,1,7,5],[13,1,13,2],[5,1,5,2],[15,1,15,2],[14,1,14,2],[12,1,12,2],[11,1,11,2],[10,1,10,2],[21,1,21,2],[4,1,4,2],[23,3,23,5],[24,3,24,5],[20,1,20,2],[19,1,19,2],[18,1,18,5],[16,1,16,2],[11,3,11,5],[14,3,14,5],[15,3,15,5],[19,3,19,5],[12,3,12,5],[16,3,16,5],[3,3,3,5],[5,3,5,5],[8,3,8,5],[9,3,9,5],[10,3,10,5],[4,3,4,5],[31,2,31,3],[24,1,24,2],[23,1,23,2],[22,1,22,2],[27,1,28,1],[27,2,28,3],[29,2,29,3],[22,3,22,5],[30,2,30,3],[27,4,27,12],[20,6,24,7],[21,10,25,13],[20,3,20,5],[21,3,21,5],[71,1,71,3],[62,2,62,3],[63,2,63,3],[64,2,64,3],[65,2,65,3],[66,2,66,3],[70,2,70,3],[68,2,68,3],[69,2,69,3],[46,3,46,5],[49,1,49,2],[50,1,50,2],[51,1,51,2],[52,1,52,2],[58,1,58,13],[59,1,60,1],[59,2,60,3],[59,4,59,12],[61,2,61,3],[43,3,43,5],[44,3,44,5],[54,1,54,13],[67,2,67,3],[51,3,51,5],[43,8,45,10],[43,1,43,2],[44,1,44,2],[45,1,45,2],[46,1,46,2],[48,1,48,5],[53,11,53,13],[52,3,52,5],[49,3,49,5],[50,3,50,5],[45,3,45,5]]}
[]
[null,null,null,"Фамилия","Имя","Отчество"]
[null,"ФИО Исполнителя"]
[null,"Дата рождения"]
[null,"Место рождения"]
[null,"Адрес регистрации"]
[]
[null,"Паспортные данные, ИНН и страховое свидетельство"]
[null,"Серия паспорта"]
[null,"Номер паспорта"]
[null,"Кем выдан"]
[null,"Дата выдачи"]
[null,"Код подразделения"]
[]
[null,"Номер страхового свидетельства"]
[null,"ИНН",null,null,null,null,"Формат данных ячеек должен оставаться текстовый!"]
[null,"Дата постановки на налоговый учет (из свидетельства)"]
[]
[null,"Банковские реквизиты:"]
[null,"Наименование банка"]
[null,"ИНН банка",null,null,null,null,"Формат данных ячеек должен оставаться текстовый!"]
[null,"КПП банка",null,null,null,null,null,null,null,null,"ТАБЛИЦА ДЛЯ ЗАПОЛНЕНИЯ ПРИЛОЖЕНИЯ 1 К ДОГОВОРУ "]
[null,"К/с банка"]
[null,"БИК банка"]
[null,"Лицевой счет получателя"]
[]
[null,"Перечень, объем, цена оказываемых услуг:"]
[null,"Учебная группа","Наименование дисциплины по учебному плану",null,"Нагрузка, час"]
[null,null,null,null,"лекции","практические занятия","лабораторные занятия","руководство/прием курсовых работ","прием зачетов/ экзаменов","руководство практикой","руководство НИР обучающихся ","участие в работе ГЭК","\n","Всего часов учебной нагрузки"]
[null,null,null,null,null,null,null,null,null,null,null,null,null,{"$f":"IF(SUM(E30:M30)=0,\"\",SUM(E30:M30))","v":""}]
[null,null,null,null,null,null,null,null,null,null,null,null,null,{"$f":"IF(SUM(E31:M31)=0,\"\",SUM(E31:M31))","v":""}]
[null,null,null,null,null,null,null,null,null,null,null,null,null,""]
[null,null,null,null,null,null,null,null,null,null,null,null,null,""]
[null,null,null,null,null,null,null,null,null,null,null,null,null,""]
[null,null,null,null,null,null,null,null,null,null,null,null,null,""]
[null,null,null,null,null,null,null,null,null,null,null,null,null,""]
[null,null,null,null,null,null,null,null,null,null,null,null,null,""]
[null,null,null,null,null,null,null,null,null,null,null,null,null,""]
[null,null,null,null,null,null,null,null,null,null,null,null,null,""]
[null,"Итого (час.)",null,null,{"$f":"IF(SUM(E30:E39)=0,\"\",SUM(E30:E39))","v":""},{"$f":"IF(SUM(F30:F39)=0,\"\",SUM(F30:F39))","v":""},"","","","","","","",{"$f":"SUM(N30:N39)","v":0}]
[]
[null,"Единица изм.",null,"час"]
[null,"Количество ",null,{"$f":"N40","v":0}]
[null,"Цена за ед., руб.  \n(на руки+НДФЛ)",null,null,null,null,null,null,"После заполнения и проверки всех данных нажмите \"Сформировать договор\""]
[null,"Срок окончания оказания Услуг"]
[null,"Должность принимающего услуги"]
[null,"ФИО принимающего услуги"]
[]
[null,"СЕРЫЕ ОБЛАСТИ НЕ РЕДАКТИРУЮТСЯ!!!"]
[null,"Цена за единицу в тексте договора, руб.",null,{"$f":"D44*1.3","v":0}]
[null,"Общая сумма вознаграждения по договору+НДФЛ",null,{"$f":"ROUND(D44*D43,2)","v":0}]
[null,"Взносы в государственные внебюджетные фонды",null,{"$f":"ROUND(D51*0.3,2)","v":0}]
[null,"Цена договора, руб.",null,{"$f":"D51+D52","v":0}]
[null,null,null,null,null,null,null,null,null,null,null,"ТАБЛИЦА ДЛЯ ЗАПОЛЕНИЯ АКТА "]
[null,"Для формирования актов!"]
[null,null,"дата","месяц","год"]
[null,"Акт от:",31,"января",2024]
[]
[null,"Перечень, объем оказываемых услуг:"]
[null,"Учебная группа","Наименование дисциплины по учебному плану",null,"Нагрузка, час"]
[null,null,null,null,"лекции","практические занятия","лабораторные занятия","руководство/прием курсовых работ","прием зачетов/ экзаменов","руководство практикой","руководство НИР обучающихся ","участие в работе ГЭК","\n","Всего часов учебной нагрузки"]
[null,null,null,null,null,null,null,null,null,null,null,null,null,{"$f":"IF(SUM(E62:M62)=0,\"\",SUM(E62:M62))","v":""}]
[null,null,null,null,null,null,null,null,null,null,null,null,null,{"$f":"IF(SUM(E63:M63)=0,\"\",SUM(E63:M63))","v":""}]
[null,null,null,null,null,null,null,null,null,null,null,null,null,""]
[null,null,null,null,null,null,null,null,null,null,null,null,null,""]
[null,null,null,null,null,null,null,null,null,null,null,null,null,""]
[null,null,null,null,null,null,null,null,null,null,null,null,null,""]
[null,null,null,null,null,null,null,null,null,null,null,null,null,""]
[null,null,null,null,null,null,null,null,null,null,null,null,null,""]
[null,null,null,null,null,null,null,null,null,null,null,null,null,""]
[null,null,null,null,null,null,null,null,null,null,null,null,null,""]
[null,"Итого (час.)",null,null,{"$f":"IF(SUM(E62:E71)=0,\"\",SUM(E62:E71))","v":""},{"$f":"IF(SUM(F62:F71)=0,\"\",SUM(F62:F71))","v":""},"","","","","","","",{"$f":"SUM(N62:N71)","v":0}]

{"sheet":"Договор","index":1,"n_rows":97,"n_cols":10,"rows_kept":97,"cut":false,"hidden":false,"merged":[[91,5,91,9],[78,0,78,2],[43,0,43,9],[9,0,9,9],[46,0,46,9],[44,0,44,9],[48,0,48,9],[49,0,49,9],[24,0,24,3],[27,0,27,3],[23,0,23,9],[25,0,25,9],[26,0,26,9],[41,0,41,9],[28,0,28,9],[18,0,18,9],[1,0,1,9],[3,0,3,3],[19,0,19,9],[20,0,20,9],[22,0,22,9],[5,0,5,9],[7,0,7,9],[6,0,6,9],[10,0,10,9],[11,0,11,9],[12,0,12,6],[14,0,14,9],[16,0,16,9],[15,0,15,3],[21,0,21,3],[17,0,17,9],[38,0,38,9],[40,0,40,9],[29,0,29,9],[34,0,34,1],[39,0,39,1],[36,0,36,1],[30,0,30,9],[32,0,32,9],[33,0,33,9],[34,2,34,9],[36,2,36,9],[39,2,39,9],[52,0,52,9],[53,0,53,9],[42,0,42,9],[51,0,51,9],[47,0,47,9],[54,0,54,9],[65,0,65,9],[66,0,66,9],[57,0,57,9],[55,0,55,9],[56,0,56,9],[58,0,58,9],[60,0,60,9],[61,0,61,9],[62,0,62,9],[63,0,63,9],[96,0,96,3],[93,5,93,9],[96,5,96,9],[82,5,82,9],[85,5,85,9],[82,0,82,3],[83,0,83,3],[85,0,85,3],[86,5,86,6],[87,5,87,7],[95,0,95,3],[88,0,89,3],[92,5,92,9],[88,5,88,9],[89,5,89,9],[90,5,90,9],[67,0,67,9],[68,0,68,9],[70,0,70,9],[80,5,80,9],[86,0,86,3],[79,0,79,3],[81,0,81,3],[69,0,69,9],[71,0,71,9],[72,0,72,9],[75,0,75,9],[81,5,81,9],[73,0,73,9],[78,5,78,9]]}
[null,null,null,null,"ДОГОВОР № ","_______________"]
["об оказании услуг физическим лицом"]
[]
["г. Санкт-Петербург ",null,null,null,null,null,null,null,null,"«____» _______________ 20___ г."]
[]
["Федеральное государственное бюджетное образовательное учреждение высшего образования  «Санкт-Петербургский государственный университет промышленных технологий и дизайна» (СПбГУПТД), именуемое в дальнейшем «Заказчик», в лице первого проректора, проректора по УР Рудина Александра Евгеньевича, действующего на основании доверенности № 38-01-01-21/01-37 от 01.02.2022 г., с одной стороны, и "]
[{"$f":"ФОРМА!D3&\" \"&ФОРМА!E3&\" \"&ФОРМА!F3&\",\"","v":"  ,"}]
["именуемый в дальнейшем «Исполнитель», с другой стороны, вместе именуемые «Стороны», в соответствии с Федеральным законом от 18.07.2011 № 223-ФЗ «О закупках товаров, работ, услуг отдельными видами юридических лиц», Положением о закупке Заказчика от 15.04.2022 г. заключили настоящий договор о нижеследующем:"]
[]
["1.      ПРЕДМЕТ ДОГОВОРА"]
["1.1. В соответствии с настоящим Договором Исполнитель обязуется оказать Заказчику преподавательские услуги в соответствии с Приложением № 1 к настоящему Договору, в сроки и в порядке, установленные в настоящем Договоре. Учебный процесс реализуется в очной форме и с применением электронного обучения и (или) дистанционных образовательных технологий."]
["1.2. Исполнитель оказывает Услуги лично, без привлечения третьих лиц."]
["1.3. Срок оказания Услуг устанавливается с момента заключения договора по",null,null,null,null,null,null,{"$f":"ФОРМА!D45","v":"00:00:00"},"г."]
[]
["2.      ПРАВА И ОБЯЗАННОСТИ СТОРОН"]
["2.1. Исполнитель обязан:"]
["2.1.1.     Качественно и своевременно оказывать Услуги, указанные в Приложении №1 к настоящему Договору."]
["2.1.2.    Обеспечивать Заказчику возможность проверки хода и качества оказания Услуг."]
["2.1.3.    Немедленно предупредить Заказчика о любых обстоятельствах, которые могут повлиять на качество и сроки оказания Услуг."]
["2.1.4.    Сохранять конфиденциальность информации, полученной от Заказчика. "]
["2.1.5.    Выполнять все требования Заказчика, касающиеся качественного и своевременного оказания Услуг. "]
["2.2. Исполнитель имеет право:"]
["2.2.1. Запрашивать у Заказчика информацию необходимую для оказания Услуг по Договору."]
["2.2.2. По согласованию с Заказчиком досрочно оказать Услуги."]
["2.3. Заказчик обязан:"]
["2.3.1. Принять оказанные Услуги в соответствии с условиями настоящего Договора."]
["2.3.2. Оплатить оказанные Услуги на условиях, предусмотренных в разделе 3 настоящего Договора."]
["2.4. Заказчик имеет право:"]
["2.4.1. Проверять ход и качество Услуг, оказываемых Исполнителем, не вмешиваясь в его деятельность."]
["2.4.2. Отказаться от исполнения настоящего Договора в любое время до подписания акта приема - сдачи Услуг, оплатив Исполнителю часть установленной цены пропорционально части оказанных Услуг. "]
["2.5. Стороны обязуются соблюдать конфиденциальность в отношении информации, полученной ими друг от друга, или ставшей известной им в ходе исполнения настоящего Договора, не открывать и не разглашать в общем или в частности информацию какой-либо третьей стороне без предварительного письменного согласия другой Стороны настоящего Договора."]
[]
["3.      ЦЕНА ДОГОВОРА. ПРИЕМКА УСЛУГ"]
["3.1. Цена Договора включает в себя все затраты, издержки и иные расходы Исполнителя, в том числе сопутствующие, связанные с исполнением настоящего Договора, является твердой и определяется на весь срок исполнения настоящего Договора. Общая стоимость услуг по настоящему Договору составляет"]
[{"$f":"ФОРМА!D53","v":0},null,{"$f":"'222'!E9&\" в том числе:\"","v":"(Нол) руб. 00 коп. в том числе:"}]
["-   сумма вознаграждения по договору"]
[{"$f":"ФОРМА!D51","v":0},null,{"$f":"'222'!G9","v":"(Нол) руб. 00 коп."}]
["включая НДФЛ, который Заказчик, являясь налоговым агентом, удерживает и перечисляет в бюджет;"]
["-   взносы в государственные внебюджетные фонды, перечисляемые Заказчиком (30%)"]
[{"$f":"ФОРМА!D52","v":0},null,{"$f":"'222'!G14","v":"(Нол) руб. 00 коп."}]
["3.2. Основанием для оплаты оказанных услуг является Акт сдачи-приемки ежемесячно оказанных услуг, подписанный Сторонами. Оплата осуществляется в безналичном порядке путем перечисления Заказчиком денежных средств Исполнителю в течение 30 (Тридцати) рабочих дней с момента подписания акта приёма-сдачи оказанных Услуг (далее - Акт)."]
["3.3. Сумма по Договору, подлежащей уплате соответствующему лицу уменьшается на размер налогов, сборов и иных обязательных платежей в бюджеты бюджетной системы Российской Федерации, связанных с оплатой Договора, если в соответствии с законодательством Российской Федерации о налогах и сборах такие налоги, сборы и иные обязательные платежи подлежат уплате в бюджеты бюджетной системы Российской Федерации Заказчиком."]
["3.4. Акт направляется на подписание Заказчику в срок не позднее 1-го (Первого) числа каждого месяца, следующего за отчетным, в которым были оказаны услуги."]
["3.5. Оплате подлежат только фактически оказанные Исполнителем и принятые по Акту Заказчиком Услуги. Приемка Услуг осуществляется Заказчиком в течение 5 дней после получения им Акта. В течение указанного срока Заказчик подписывает Акт или направляет мотивированный отказ. "]
["3.6. После устранения недостатков Исполнитель составляет повторный Акт, который подлежит рассмотрению и подписанию Заказчиком в порядке, установленном настоящим разделом."]
[]
["4.      ОТВЕТСТВЕННОСТЬ СТОРОН"]
["4.1. Стороны несут ответственность за невыполнение взятых на себя обязательств в соответствии с действующим законодательством Российской Федерации."]
["4.2. Стороны освобождаются от ответственности за неисполнение или ненадлежащее исполнение обязательств по настоящему Договору при возникновении обстоятельств непреодолимой силы, которые делают выполнение настоящего Договора невозможным. "]
["4.3. В случае неисполнения или ненадлежащего исполнения Исполнителем обязательств, предусмотренных настоящим Договором, Заказчик вправе направить Исполнителю требование об уплате штрафа в размере 3 (трех) процентов от цены Договора."]
[]
["5.      СРОК ДЕЙСТВИЯ И УСЛОВИЯ ПРЕКРАЩЕНИЕ ДОГОВОРА"]
["5.1. Договор вступает в силу с момента подписания и действует до полного исполнения Сторонами своих обязательств по Договору."]
["5.2. Расторжение настоящего Договора допускается по соглашению Сторон, по решению суда, в случае одностороннего отказа Стороны Договора от исполнения Договора в соответствии с законодательством и настоящим Договором."]
["5.3. Заказчик вправе в одностороннем порядке отказаться от исполнения обязательств по настоящему Договору силами Исполнителя, в случаях:"]
["5.3.1. если Исполнитель не может оказать услуги в объеме и сроки, предусмотренные настоящим Договором;"]
["5.3.2. существенного нарушения Исполнителем своих обязательств по Договору;"]
["5.3.3. в иных случаях, предусмотренных действующим законодательством и настоящим Договором."]
["5.4. При досрочном расторжении Договора Стороны производят взаиморасчеты за услуги только в той части, в какой они фактически оказаны Исполнителем и приняты в установленном порядке Заказчиком на момент такого расторжения. "]
[]
["6.        ПОРЯДОК УРЕГУЛИРОВАНИЯ СПОРОВ"]
["6.1. Стороны принимают все меры к тому, чтобы любые спорные вопросы, разногласия либо претензии, касающиеся исполнения настоящего Договора, были урегулированы путем переговоров."]
["6.2. В случае наличия претензий, споров, разногласий относительно исполнения одной из Сторон своих обязательств, другая Сторона направляет претензию. В отношении всех претензий, направляемых по настоящему Договору, Сторона, к которой адресована данная претензия, должна дать письменный ответ по существу претензии в срок не позднее 10 (десяти) рабочих дней с момента её получения. "]
["6.3. В случае невозможности разрешения споров путем переговоров они решаются в судебном порядке, предусмотренном законодательством Российской Федерации, по месту нахождения Заказчика."]
[]
["7.      ПРОЧИЕ УСЛОВИЯ"]
["7.1. По согласованию Сторон условия Договора могут быть изменены в случаях, предусмотренных Положением о закупке, действующим законодательством РФ. Все изменения по Договору оформляются в письменном виде, подписываются обеими Сторонами и являются неотъемлемой частью Договора."]
["7.2. Исполнитель определяет технологию оказания услуг самостоятельно, соблюдая обязательные требования нормативных документов, за исключением случаев, когда Заказчик прямо указал на способ оказания услуг."]
["7.3. Заказчик не несет ответственность за неполучение или несвоевременное получение Исполнителем суммы вознаграждения по Договору в случае, если Исполнитель указал в Договоре некорректные банковские реквизиты или своевременно не сообщил Заказчику об их изменении."]
["7.4. Исполнитель в порядке статьи 431.2 Гражданского кодекса Российской Федерации заверяет Заказчика о том, что в течение 2-х последних лет Исполнитель не занимал должности государственной или муниципальной службы."]
["7.5. Договор составлен в двух экземплярах, имеющих одинаковую юридическую силу, по одному для каждой из Сторон."]
["7.6. К Договору прилагаются и являются неотъемлемой его частью:"]
["Приложение № 1 – Перечень, объем, цена оказываемых услуг."]
["Приложение № 2 – СОГЛАСИЕ НА ОБРАБОТКУ ПЕРСОНАЛЬНЫХ ДАННЫХ"]
[]
["8.      АДРЕСА И РЕКВИЗИТЫ СТОРОН"]
[]
["ЗАКАЗЧИК",null,null,null,null,"ИСПОЛНИТЕЛЬ"]
["СПбГУПТД ",null,null,null,null,{"$f":"\"Ф.И.О:  \"&ФОРМА!D3&\" \"&ФОРМА!E3&\" \"&ФОРМА!F3","v":"Ф.И.О:    "}]
["Адрес: 191186, Санкт-Петербург, ",null,null,null,null,"Дата и место рождения: ",null,{"$f":"ФОРМА!D4","v":"00:00:00"},"г."]
[null,null,null,null,null,{"$f":"ФОРМА!D5","v":"00:00:00"}]
["ул. Большая Морская, д. 18, лит. А\nИНН 7808042283, КПП 784001001",null,null,null,null,{"$f":"\"Адрес регистрации: \"&ФОРМА!D6","v":"Адрес регистрации: "}]
["Получатель: УФК по г. Санкт-Петербургу (СПБГУПТД, л/с 20726Х72005) ",null,null,null,null,{"$f":"\"Паспорт серия \"&ФОРМА!D9&\" № \"&ФОРМА!D10&\", выдан \"&ФОРМА!D11&\", \"","v":"Паспорт серия  № , выдан , "}]
["Расчетный счет: 40102810945370000005",null,null,null,null,"дата выдачи:",null,{"$f":"ФОРМА!D12","v":"00:00:00"}]
[null,null,null,null,null,"Код подразделения:",null,{"$f":"ФОРМА!D13","v":0}]
["Казначейский счет: 03214643000000017200",null,null,null,null,{"$f":"\"Страх. св-во: \"&ФОРМА!D15","v":"Страх. св-во: "}]
["БИК 014030106",null,null,null,null,{"$f":"\"ИНН \"&ФОРМА!D16","v":"ИНН "}]
[null,null,null,null,null,"Дата постановки на налоговый учет",null,null,{"$f":"ФОРМА!D17","v":"00:00:00"},"г."]
["Северо-Западное ГУ Банка России // УФК по г. Санкт-Петербургу, г. Санкт-Петербург ",null,null,null,null,"Банковские реквизиты:"]
[null,null,null,null,null,{"$f":"\"Наименование банка: \"&ФОРМА!D20","v":"Наименование банка: "}]
[null,null,null,null,null,{"$f":"\"ИНН/КПП банка: \"&ФОРМА!D21&\"/\"&ФОРМА!D22","v":"ИНН/КПП банка: /"}]
[null,null,null,null,null,{"$f":"\"К/с банка: \"&ФОРМА!D23","v":"К/с банка: "}]
[null,null,null,null,null,{"$f":"\"БИК банка: \"&ФОРМА!D24","v":"БИК банка: "}]
[null,null,null,null,null,{"$f":"\"Лицевой счет получателя: \"&ФОРМА!D25","v":"Лицевой счет получателя: "}]
[]
["Первый проректор, проректор по УР"]
["_________________А.Е. Рудин",null,null,null,null,{"$f":"\"_____________________ \"&LEFT(ФОРМА!E3,1)&\".\"&LEFT(ФОРМА!F3,1)&\". \"&ФОРМА!D3","v":"_____________________ .. "}]

{"sheet":"Приложение 1","index":2,"n_rows":29,"n_cols":12,"rows_kept":29,"cut":false,"hidden":false,"merged":[[28,0,28,3],[18,0,18,1],[6,0,7,0],[6,1,7,1],[6,2,6,10],[26,0,26,3],[27,0,27,3],[19,2,19,11],[20,2,20,11],[22,0,22,11],[19,0,19,1],[20,0,20,1],[6,11,7,11]]}
[null,null,null,null,null,null,null,null,null,null,null,"Приложение №1"]
[null,null,null,null,null,null,null,null,null,null,null," к договору на оказание услуг"]
[null,null,null,null,null,null,null,null,null,null,null,"физическим лицом №______________ от _____________ г."]
[]
[]
["Перечень, объем, цена оказываемых услуг"]
["Учебная группа","Наименование дисциплины по учебному плану","Нагрузка, час",null,null,null,null,null,null,null,null,"Всего часов учебной \nнагрузки"]
[null,null,"лекции","практические занятия","лабораторные занятия","руководство/\nприем курсовых работ","прием зачетов/ экзаменов","руководство практикой","руководство НИР \nобучающихся ","участие в работе ГЭК",{"$f":"IF(ФОРМА!M29=\"\",\"\",ФОРМА!M29)","v":"\n"}]
[{"$f":"IF(ФОРМА!B30=\"\",\"\",ФОРМА!B30)","v":""},{"$f":"IF(ФОРМА!C30=\"\",\"\",ФОРМА!C30)","v":""},{"$f":"IF(ФОРМА!E30=\"\",\"\",ФОРМА!E30)","v":""},{"$f":"IF(ФОРМА!F30=\"\",\"\",ФОРМА!F30)","v":""},{"$f":"IF(ФОРМА!G30=\"\",\"\",ФОРМА!G30)","v":""},{"$f":"IF(ФОРМА!H30=\"\",\"\",ФОРМА!H30)","v":""},{"$f":"IF(ФОРМА!I30=\"\",\"\",ФОРМА!I30)","v":""},{"$f":"IF(ФОРМА!J30=\"\",\"\",ФОРМА!J30)","v":""},{"$f":"IF(ФОРМА!K30=\"\",\"\",ФОРМА!K30)","v":""},{"$f":"IF(ФОРМА!L30=\"\",\"\",ФОРМА!L30)","v":""},{"$f":"IF(ФОРМА!M30=\"\",\"\",ФОРМА!M30)","v":""},{"$f":"IF(SUM(C9:K9)=0,\"\",SUM(C9:K9))","v":""}]
[{"$f":"IF(ФОРМА!B31=\"\",\"\",ФОРМА!B31)","v":""},{"$f":"IF(ФОРМА!C31=\"\",\"\",ФОРМА!C31)","v":""},{"$f":"IF(ФОРМА!E31=\"\",\"\",ФОРМА!E31)","v":""},{"$f":"IF(ФОРМА!F31=\"\",\"\",ФОРМА!F31)","v":""},{"$f":"IF(ФОРМА!G31=\"\",\"\",ФОРМА!G31)","v":""},{"$f":"IF(ФОРМА!H31=\"\",\"\",ФОРМА!H31)","v":""},{"$f":"IF(ФОРМА!I31=\"\",\"\",ФОРМА!I31)","v":""},{"$f":"IF(ФОРМА!J31=\"\",\"\",ФОРМА!J31)","v":""},{"$f":"IF(ФОРМА!K31=\"\",\"\",ФОРМА!K31)","v":""},{"$f":"IF(ФОРМА!L31=\"\",\"\",ФОРМА!L31)","v":""},{"$f":"IF(ФОРМА!M31=\"\",\"\",ФОРМА!M31)","v":""},{"$f":"IF(SUM(C10:K10)=0,\"\",SUM(C10:K10))","v":""}]
[{"$f":"IF(ФОРМА!B32=\"\",\"\",ФОРМА!B32)","v":""},{"$f":"IF(ФОРМА!C32=\"\",\"\",ФОРМА!C32)","v":""},{"$f":"IF(ФОРМА!E32=\"\",\"\",ФОРМА!E32)","v":""},{"$f":"IF(ФОРМА!F32=\"\",\"\",ФОРМА!F32)","v":""},{"$f":"IF(ФОРМА!G32=\"\",\"\",ФОРМА!G32)","v":""},{"$f":"IF(ФОРМА!H32=\"\",\"\",ФОРМА!H32)","v":""},{"$f":"IF(ФОРМА!I32=\"\",\"\",ФОРМА!I32)","v":""},{"$f":"IF(ФОРМА!J32=\"\",\"\",ФОРМА!J32)","v":""},{"$f":"IF(ФОРМА!K32=\"\",\"\",ФОРМА!K32)","v":""},{"$f":"IF(ФОРМА!L32=\"\",\"\",ФОРМА!L32)","v":""},{"$f":"IF(ФОРМА!M32=\"\",\"\",ФОРМА!M32)","v":""},""]
[{"$f":"IF(ФОРМА!B33=\"\",\"\",ФОРМА!B33)","v":""},{"$f":"IF(ФОРМА!C33=\"\",\"\",ФОРМА!C33)","v":""},{"$f":"IF(ФОРМА!E33=\"\",\"\",ФОРМА!E33)","v":""},{"$f":"IF(ФОРМА!F33=\"\",\"\",ФОРМА!F33)","v":""},{"$f":"IF(ФОРМА!G33=\"\",\"\",ФОРМА!G33)","v":""},{"$f":"IF(ФОРМА!H33=\"\",\"\",ФОРМА!H33)","v":""},{"$f":"IF(ФОРМА!I33=\"\",\"\",ФОРМА!I33)","v":""},{"$f":"IF(ФОРМА!J33=\"\",\"\",ФОРМА!J33)","v":""},{"$f":"IF(ФОРМА!K33=\"\",\"\",ФОРМА!K33)","v":""},{"$f":"IF(ФОРМА!L33=\"\",\"\",ФОРМА!L33)","v":""},{"$f":"IF(ФОРМА!M33=\"\",\"\",ФОРМА!M33)","v":""},""]
[{"$f":"IF(ФОРМА!B34=\"\",\"\",ФОРМА!B34)","v":""},{"$f":"IF(ФОРМА!C34=\"\",\"\",ФОРМА!C34)","v":""},{"$f":"IF(ФОРМА!E34=\"\",\"\",ФОРМА!E34)","v":""},{"$f":"IF(ФОРМА!F34=\"\",\"\",ФОРМА!F34)","v":""},{"$f":"IF(ФОРМА!G34=\"\",\"\",ФОРМА!G34)","v":""},{"$f":"IF(ФОРМА!H34=\"\",\"\",ФОРМА!H34)","v":""},{"$f":"IF(ФОРМА!I34=\"\",\"\",ФОРМА!I34)","v":""},{"$f":"IF(ФОРМА!J34=\"\",\"\",ФОРМА!J34)","v":""},{"$f":"IF(ФОРМА!K34=\"\",\"\",ФОРМА!K34)","v":""},{"$f":"IF(ФОРМА!L34=\"\",\"\",ФОРМА!L34)","v":""},{"$f":"IF(ФОРМА!M34=\"\",\"\",ФОРМА!M34)","v":""},""]
[{"$f":"IF(ФОРМА!B35=\"\",\"\",ФОРМА!B35)","v":""},{"$f":"IF(ФОРМА!C35=\"\",\"\",ФОРМА!C35)","v":""},{"$f":"IF(ФОРМА!E35=\"\",\"\",ФОРМА!E35)","v":""},{"$f":"IF(ФОРМА!F35=\"\",\"\",ФОРМА!F35)","v":""},{"$f":"IF(ФОРМА!G35=\"\",\"\",ФОРМА!G35)","v":""},{"$f":"IF(ФОРМА!H35=\"\",\"\",ФОРМА!H35)","v":""},{"$f":"IF(ФОРМА!I35=\"\",\"\",ФОРМА!I35)","v":""},{"$f":"IF(ФОРМА!J35=\"\",\"\",ФОРМА!J35)","v":""},{"$f":"IF(ФОРМА!K35=\"\",\"\",ФОРМА!K35)","v":""},{"$f":"IF(ФОРМА!L35=\"\",\"\",ФОРМА!L35)","v":""},{"$f":"IF(ФОРМА!M35=\"\",\"\",ФОРМА!M35)","v":""},""]
[{"$f":"IF(ФОРМА!B36=\"\",\"\",ФОРМА!B36)","v":""},{"$f":"IF(ФОРМА!C36=\"\",\"\",ФОРМА!C36)","v":""},{"$f":"IF(ФОРМА!E36=\"\",\"\",ФОРМА!E36)","v":""},{"$f":"IF(ФОРМА!F36=\"\",\"\",ФОРМА!F36)","v":""},{"$f":"IF(ФОРМА!G36=\"\",\"\",ФОРМА!G36)","v":""},{"$f":"IF(ФОРМА!H36=\"\",\"\",ФОРМА!H36)","v":""},{"$f":"IF(ФОРМА!I36=\"\",\"\",ФОРМА!I36)","v":""},{"$f":"IF(ФОРМА!J36=\"\",\"\",ФОРМА!J36)","v":""},{"$f":"IF(ФОРМА!K36=\"\",\"\",ФОРМА!K36)","v":""},{"$f":"IF(ФОРМА!L36=\"\",\"\",ФОРМА!L36)","v":""},{"$f":"IF(ФОРМА!M36=\"\",\"\",ФОРМА!M36)","v":""},""]
[{"$f":"IF(ФОРМА!B37=\"\",\"\",ФОРМА!B37)","v":""},{"$f":"IF(ФОРМА!C37=\"\",\"\",ФОРМА!C37)","v":""},{"$f":"IF(ФОРМА!E37=\"\",\"\",ФОРМА!E37)","v":""},{"$f":"IF(ФОРМА!F37=\"\",\"\",ФОРМА!F37)","v":""},{"$f":"IF(ФОРМА!G37=\"\",\"\",ФОРМА!G37)","v":""},{"$f":"IF(ФОРМА!H37=\"\",\"\",ФОРМА!H37)","v":""},{"$f":"IF(ФОРМА!I37=\"\",\"\",ФОРМА!I37)","v":""},{"$f":"IF(ФОРМА!J37=\"\",\"\",ФОРМА!J37)","v":""},{"$f":"IF(ФОРМА!K37=\"\",\"\",ФОРМА!K37)","v":""},{"$f":"IF(ФОРМА!L37=\"\",\"\",ФОРМА!L37)","v":""},{"$f":"IF(ФОРМА!M37=\"\",\"\",ФОРМА!M37)","v":""},""]
[{"$f":"IF(ФОРМА!B38=\"\",\"\",ФОРМА!B38)","v":""},{"$f":"IF(ФОРМА!C38=\"\",\"\",ФОРМА!C38)","v":""},{"$f":"IF(ФОРМА!E38=\"\",\"\",ФОРМА!E38)","v":""},{"$f":"IF(ФОРМА!F38=\"\",\"\",ФОРМА!F38)","v":""},{"$f":"IF(ФОРМА!G38=\"\",\"\",ФОРМА!G38)","v":""},{"$f":"IF(ФОРМА!H38=\"\",\"\",ФОРМА!H38)","v":""},{"$f":"IF(ФОРМА!I38=\"\",\"\",ФОРМА!I38)","v":""},{"$f":"IF(ФОРМА!J38=\"\",\"\",ФОРМА!J38)","v":""},{"$f":"IF(ФОРМА!K38=\"\",\"\",ФОРМА!K38)","v":""},{"$f":"IF(ФОРМА!L38=\"\",\"\",ФОРМА!L38)","v":""},{"$f":"IF(ФОРМА!M38=\"\",\"\",ФОРМА!M38)","v":""},""]
[{"$f":"IF(ФОРМА!B39=\"\",\"\",ФОРМА!B39)","v":""},{"$f":"IF(ФОРМА!C39=\"\",\"\",ФОРМА!C39)","v":""},{"$f":"IF(ФОРМА!E39=\"\",\"\",ФОРМА!E39)","v":""},{"$f":"IF(ФОРМА!F39=\"\",\"\",ФОРМА!F39)","v":""},{"$f":"IF(ФОРМА!G39=\"\",\"\",ФОРМА!G39)","v":""},{"$f":"IF(ФОРМА!H39=\"\",\"\",ФОРМА!H39)","v":""},{"$f":"IF(ФОРМА!I39=\"\",\"\",ФОРМА!I39)","v":""},{"$f":"IF(ФОРМА!J39=\"\",\"\",ФОРМА!J39)","v":""},{"$f":"IF(ФОРМА!K39=\"\",\"\",ФОРМА!K39)","v":""},{"$f":"IF(ФОРМА!L39=\"\",\"\",ФОРМА!L39)","v":""},{"$f":"IF(ФОРМА!M39=\"\",\"\",ФОРМА!M39)","v":""},""]
["Итого (час.)",null,{"$f":"IF(SUM(C9:C18)=0,\"\",SUM(C9:C18))","v":""},{"$f":"IF(SUM(D9:D18)=0,\"\",SUM(D9:D18))","v":""},"","","","","","","",{"$f":"SUM(L9:L18)","v":0}]
["Цена за ед., руб.*",null,{"$f":"ФОРМА!D50","v":0}]
["Стоимость, руб.*",null,{"$f":"L19*C20","v":0}]
[]
["* Включает сумму вознаграждения по договору, включая НДФЛ (13%), который Заказчик, являясь налоговым агентом, удерживает и перечисляет в бюджет, а также взносы в государственные внебюджетные фонды, перечисляемые Заказчиком в соответствии с действующим законодательством Российской Федерации (30%)"]
[]
["ЗАКАЗЧИК",null,null,null,null,null,"ИСПОЛНИТЕЛЬ"]
[]
["Первый проректор, проректор по УР "]
[]
["____________________А.Е. Рудин",null,null,null,null,null,{"$f":"\"__________________ \"&LEFT(ФОРМА!E3,1)&\".\"&LEFT(ФОРМА!F3,1)&\". \"&ФОРМА!D3","v":"__________________ .. "}]

{"sheet":"Согласие на ОПД","index":3,"n_rows":28,"n_cols":6,"rows_kept":28,"cut":false,"hidden":false,"merged":[[7,0,7,5],[16,0,16,5],[18,0,18,5],[19,1,19,5],[21,0,21,5],[27,0,27,1],[27,3,27,5],[9,0,9,5],[10,0,10,5],[12,0,12,5],[11,0,11,5],[14,0,14,5],[13,0,13,5]]}
[null,null,null,null,null,"Приложение №2"]
[null,null,null,null,null," к договору на оказание услуг"]
[null,null,null,null,null,"физическим лицом №______________ от _____________ г."]
[]
[]
[]
[]
["СОГЛАСИЕ НА ОБРАБОТКУ ПЕРСОНАЛЬНЫХ ДАННЫХ"]
[]
[{"$f":"ФОРМА!D3&\" \"&ФОРМА!E3&\" \"&ФОРМА!F3","v":"  "}]
["Фамилия, имя, отчество"]
[{"$f":"\"Паспорт серия \"&ФОРМА!D9&\" № \"&ФОРМА!D10&\", выдан \"&ФОРМА!D11&\", дата выдачи \"&ФОРМА!D12","v":"Паспорт серия  № , выдан , дата выдачи "}]
["Паспортные данные"]
[{"$f":"ФОРМА!D6","v":0}]
["Адрес"]
[]
["Согласен(на) на обработку, включая сбор, систематизацию, накопление, хранение, уточнение, использование, передачу, блокирование, уничтожение моих персональных данных федеральным государственным бюджетным образовательным учреждением высшего образования «Санкт-Петербургский государственный университет промышленных  технологий и дизайна» (СПбГУПТД), расположенным по адресу: г. Санкт-Петербург, ул. Большая Морская, д.18. Согласие мною дано и действует со дня его подписания до достижения цели обработки;  с правом обработки моих персональных данных с использованием средств автоматизации (в информационных системах и базах данных СПбГУПТД) и без их использования, с правом передачи на цифровых носителях и по каналам связи. Настоящим согласием подтверждаю копирование и хранение моих документов об образовании, ученой степени, ученом звании, о повышении квалификации, о трудовой деятельности. Согласие дано с целью содействия мне, как субъекту персональных данных, в осуществлении моей деятельности, а также наиболее полного исполнения СПбГУПТД обязательств в соответствии с законодательством."]
[]
["Перечень персональных данных, на обработку которых дается согласие, с целью заключения и исполнения договоров ГПХ с физическими лицами, не являющимися работниками СПбГУПТД:"]
[null,"фамилия, имя, отчество; табельный номер; адрес регистрации; данные документа, удостоверяющего личность; ученая степень, ученое звание (когда присвоено, каких наук, номера дипломов, аттестатов); подразделение; ИНН; СНИЛС; номер мобильного телефона; данные о договоре на оказание услуг (номер договора, дата его заключения, дата начала и дата окончания договора, вид услуг, объем нагрузки, номер и число изменения к договору, характер работы, форма оплаты, категория персонала); размер вознаграждения за выполненные работы/услуги; банковские реквизиты."]
[]
["Я оставляю за собой право отозвать свое согласие в письменной форме в любое время. С «Политикой СПбГУПТД в отношении обработки и защиты персональных данных», утв. ректором СПбГУПТД 20.04.2021г., «Положением об обработке и защите персональных данных в СПбГУПТД», утв.приказом от 20.04.2021г. № 49, ознакомлен, права и обязанности в области защиты персональных данных мне разъяснены."]
[]
[]
[]
[]
[]
["«______» _______________ 20_____г.",null,null,{"$f":"\"__________________ \"&LEFT(ФОРМА!E3,1)&\".\"&LEFT(ФОРМА!F3,1)&\". \"&ФОРМА!D3","v":"__________________ .. "}]

{"sheet":"АКТ","index":4,"n_rows":57,"n_cols":12,"rows_kept":57,"cut":false,"hidden":false,"merged":[[10,0,11,0],[10,2,10,10],[22,0,22,1],[23,0,23,1],[23,2,23,11],[10,1,11,1],[10,11,11,11],[0,0,0,11],[1,0,1,11],[5,0,5,11],[7,0,7,11],[8,0,8,11],[34,0,34,11],[31,0,31,11],[33,0,33,11],[24,2,24,11],[25,2,25,11],[24,0,24,1],[25,0,25,1],[29,4,29,5]]}
["Акт сдачи-приемки"]
["оказанных услуг по договору №______________от ____________"]
[]
["г. Санкт-Петербург",null,null,null,null,null,null,null,null,null,null,{"$f":"\"«\"&ФОРМА!C57&\"» \"&ФОРМА!D57&\" \"&ФОРМА!E57&\" г.\"","v":"«31» января 2024 г."}]
[]
["Федеральное государственное бюджетное образовательное учреждение высшего образования «Санкт-Петербургский государственный университет промышленных технологий и дизайна», именуемое в дальнейшем «Заказчик», в лице первого проректора, проректора по УР Рудина Александра Евгеньевича, действующего на основании доверенности № 38-01-01-21/01-37 от 01.02.2022 г., с одной стороны, и"]
[]
[{"$f":"ФОРМА!D3&\" \"&ФОРМА!E3&\" \"&ФОРМА!F3&\",\"","v":"  ,"}]
[{"$f":"\"именуемый(-ая) в дальнейшем «Исполнитель», с другой стороны составили настоящий акт о том, что Исполнителем оказаны, а Заказчиком приняты  услуги в \"&VLOOKUP(ФОРМА!D57,'222'!A:B,2,FALSE)&\" \"&ФОРМА!E57&\" г. в следующем объеме:\"","v":"именуемый(-ая) в дальнейшем «Исполнитель», с другой стороны составили настоящий акт о том, что Исполнителем оказаны, а Заказчиком приняты  услуги в январе 2024 г. в следующем объеме:"}]
[]
["Учебная группа","Наименование дисциплины по учебному плану","Нагрузка, час",null,null,null,null,null,null,null,null,"Всего часов учебной \nнагрузки"]
[null,null,"лекции","практические занятия","лабораторные занятия","руководство/\nприем курсовых работ","прием зачетов/ экзаменов","руководство практикой","руководство НИР \nобучающихся ","участие в работе ГЭК",{"$f":"IF(ФОРМА!M61=\"\",\"\",ФОРМА!M61)","v":"\n"}]
[{"$f":"IF(ФОРМА!B62=\"\",\"\",ФОРМА!B62)","v":""},{"$f":"IF(ФОРМА!C62=\"\",\"\",ФОРМА!C62)","v":""},{"$f":"IF(ФОРМА!E62=\"\",\"\",ФОРМА!E62)","v":""},{"$f":"IF(ФОРМА!F62=\"\",\"\",ФОРМА!F62)","v":""},{"$f":"IF(ФОРМА!G62=\"\",\"\",ФОРМА!G62)","v":""},{"$f":"IF(ФОРМА!H62=\"\",\"\",ФОРМА!H62)","v":""},{"$f":"IF(ФОРМА!I62=\"\",\"\",ФОРМА!I62)","v":""},{"$f":"IF(ФОРМА!J62=\"\",\"\",ФОРМА!J62)","v":""},{"$f":"IF(ФОРМА!K62=\"\",\"\",ФОРМА!K62)","v":""},{"$f":"IF(ФОРМА!L62=\"\",\"\",ФОРМА!L62)","v":""},{"$f":"IF(ФОРМА!M62=\"\",\"\",ФОРМА!M62)","v":""},{"$f":"IF(ФОРМА!N62=\"\",\"\",ФОРМА!N62)","v":""}]
[{"$f":"IF(ФОРМА!B63=\"\",\"\",ФОРМА!B63)","v":""},{"$f":"IF(ФОРМА!C63=\"\",\"\",ФОРМА!C63)","v":""},{"$f":"IF(ФОРМА!E63=\"\",\"\",ФОРМА!E63)","v":""},{"$f":"IF(ФОРМА!F63=\"\",\"\",ФОРМА!F63)","v":""},{"$f":"IF(ФОРМА!G63=\"\",\"\",ФОРМА!G63)","v":""},{"$f":"IF(ФОРМА!H63=\"\",\"\",ФОРМА!H63)","v":""},{"$f":"IF(ФОРМА!I63=\"\",\"\",ФОРМА!I63)","v":""},{"$f":"IF(ФОРМА!J63=\"\",\"\",ФОРМА!J63)","v":""},{"$f":"IF(ФОРМА!K63=\"\",\"\",ФОРМА!K63)","v":""},{"$f":"IF(ФОРМА!L63=\"\",\"\",ФОРМА!L63)","v":""},{"$f":"IF(ФОРМА!M63=\"\",\"\",ФОРМА!M63)","v":""},{"$f":"IF(ФОРМА!N63=\"\",\"\",ФОРМА!N63)","v":""}]
[{"$f":"IF(ФОРМА!B64=\"\",\"\",ФОРМА!B64)","v":""},{"$f":"IF(ФОРМА!C64=\"\",\"\",ФОРМА!C64)","v":""},{"$f":"IF(ФОРМА!E64=\"\",\"\",ФОРМА!E64)","v":""},{"$f":"IF(ФОРМА!F64=\"\",\"\",ФОРМА!F64)","v":""},{"$f":"IF(ФОРМА!G64=\"\",\"\",ФОРМА!G64)","v":""},{"$f":"IF(ФОРМА!H64=\"\",\"\",ФОРМА!H64)","v":""},{"$f":"IF(ФОРМА!I64=\"\",\"\",ФОРМА!I64)","v":""},{"$f":"IF(ФОРМА!J64=\"\",\"\",ФОРМА!J64)","v":""},{"$f":"IF(ФОРМА!K64=\"\",\"\",ФОРМА!K64)","v":""},{"$f":"IF(ФОРМА!L64=\"\",\"\",ФОРМА!L64)","v":""},{"$f":"IF(ФОРМА!M64=\"\",\"\",ФОРМА!M64)","v":""},{"$f":"IF(ФОРМА!N64=\"\",\"\",ФОРМА!N64)","v":""}]
[{"$f":"IF(ФОРМА!B65=\"\",\"\",ФОРМА!B65)","v":""},{"$f":"IF(ФОРМА!C65=\"\",\"\",ФОРМА!C65)","v":""},{"$f":"IF(ФОРМА!E65=\"\",\"\",ФОРМА!E65)","v":""},{"$f":"IF(ФОРМА!F65=\"\",\"\",ФОРМА!F65)","v":""},{"$f":"IF(ФОРМА!G65=\"\",\"\",ФОРМА!G65)","v":""},{"$f":"IF(ФОРМА!H65=\"\",\"\",ФОРМА!H65)","v":""},{"$f":"IF(ФОРМА!I65=\"\",\"\",ФОРМА!I65)","v":""},{"$f":"IF(ФОРМА!J65=\"\",\"\",ФОРМА!J65)","v":""},{"$f":"IF(ФОРМА!K65=\"\",\"\",ФОРМА!K65)","v":""},{"$f":"IF(ФОРМА!L65=\"\",\"\",ФОРМА!L65)","v":""},{"$f":"IF(ФОРМА!M65=\"\",\"\",ФОРМА!M65)","v":""},{"$f":"IF(ФОРМА!N65=\"\",\"\",ФОРМА!N65)","v":""}]
[{"$f":"IF(ФОРМА!B66=\"\",\"\",ФОРМА!B66)","v":""},{"$f":"IF(ФОРМА!C66=\"\",\"\",ФОРМА!C66)","v":""},{"$f":"IF(ФОРМА!E66=\"\",\"\",ФОРМА!E66)","v":""},{"$f":"IF(ФОРМА!F66=\"\",\"\",ФОРМА!F66)","v":""},{"$f":"IF(ФОРМА!G66=\"\",\"\",ФОРМА!G66)","v":""},{"$f":"IF(ФОРМА!H66=\"\",\"\",ФОРМА!H66)","v":""},{"$f":"IF(ФОРМА!I66=\"\",\"\",ФОРМА!I66)","v":""},{"$f":"IF(ФОРМА!J66=\"\",\"\",ФОРМА!J66)","v":""},{"$f":"IF(ФОРМА!K66=\"\",\"\",ФОРМА!K66)","v":""},{"$f":"IF(ФОРМА!L66=\"\",\"\",ФОРМА!L66)","v":""},{"$f":"IF(ФОРМА!M66=\"\",\"\",ФОРМА!M66)","v":""},{"$f":"IF(ФОРМА!N66=\"\",\"\",ФОРМА!N66)","v":""}]
[{"$f":"IF(ФОРМА!B67=\"\",\"\",ФОРМА!B67)","v":""},{"$f":"IF(ФОРМА!C67=\"\",\"\",ФОРМА!C67)","v":""},{"$f":"IF(ФОРМА!E67=\"\",\"\",ФОРМА!E67)","v":""},{"$f":"IF(ФОРМА!F67=\"\",\"\",ФОРМА!F67)","v":""},{"$f":"IF(ФОРМА!G67=\"\",\"\",ФОРМА!G67)","v":""},{"$f":"IF(ФОРМА!H67=\"\",\"\",ФОРМА!H67)","v":""},{"$f":"IF(ФОРМА!I67=\"\",\"\",ФОРМА!I67)","v":""},{"$f":"IF(ФОРМА!J67=\"\",\"\",ФОРМА!J67)","v":""},{"$f":"IF(ФОРМА!K67=\"\",\"\",ФОРМА!K67)","v":""},{"$f":"IF(ФОРМА!L67=\"\",\"\",ФОРМА!L67)","v":""},{"$f":"IF(ФОРМА!M67=\"\",\"\",ФОРМА!M67)","v":""},{"$f":"IF(ФОРМА!N67=\"\",\"\",ФОРМА!N67)","v":""}]
[{"$f":"IF(ФОРМА!B68=\"\",\"\",ФОРМА!B68)","v":""},{"$f":"IF(ФОРМА!C68=\"\",\"\",ФОРМА!C68)","v":""},{"$f":"IF(ФОРМА!E68=\"\",\"\",ФОРМА!E68)","v":""},{"$f":"IF(ФОРМА!F68=\"\",\"\",ФОРМА!F68)","v":""},{"$f":"IF(ФОРМА!G68=\"\",\"\",ФОРМА!G68)","v":""},{"$f":"IF(ФОРМА!H68=\"\",\"\",ФОРМА!H68)","v":""},{"$f":"IF(ФОРМА!I68=\"\",\"\",ФОРМА!I68)","v":""},{"$f":"IF(ФОРМА!J68=\"\",\"\",ФОРМА!J68)","v":""},{"$f":"IF(ФОРМА!K68=\"\",\"\",ФОРМА!K68)","v":""},{"$f":"IF(ФОРМА!L68=\"\",\"\",ФОРМА!L68)","v":""},{"$f":"IF(ФОРМА!M68=\"\",\"\",ФОРМА!M68)","v":""},{"$f":"IF(ФОРМА!N68=\"\",\"\",ФОРМА!N68)","v":""}]
[{"$f":"IF(ФОРМА!B69=\"\",\"\",ФОРМА!B69)","v":""},{"$f":"IF(ФОРМА!C69=\"\",\"\",ФОРМА!C69)","v":""},{"$f":"IF(ФОРМА!E69=\"\",\"\",ФОРМА!E69)","v":""},{"$f":"IF(ФОРМА!F69=\"\",\"\",ФОРМА!F69)","v":""},{"$f":"IF(ФОРМА!G69=\"\",\"\",ФОРМА!G69)","v":""},{"$f":"IF(ФОРМА!H69=\"\",\"\",ФОРМА!H69)","v":""},{"$f":"IF(ФОРМА!I69=\"\",\"\",ФОРМА!I69)","v":""},{"$f":"IF(ФОРМА!J69=\"\",\"\",ФОРМА!J69)","v":""},{"$f":"IF(ФОРМА!K69=\"\",\"\",ФОРМА!K69)","v":""},{"$f":"IF(ФОРМА!L69=\"\",\"\",ФОРМА!L69)","v":""},{"$f":"IF(ФОРМА!M69=\"\",\"\",ФОРМА!M69)","v":""},{"$f":"IF(ФОРМА!N69=\"\",\"\",ФОРМА!N69)","v":""}]
[{"$f":"IF(ФОРМА!B70=\"\",\"\",ФОРМА!B70)","v":""},{"$f":"IF(ФОРМА!C70=\"\",\"\",ФОРМА!C70)","v":""},{"$f":"IF(ФОРМА!E70=\"\",\"\",ФОРМА!E70)","v":""},{"$f":"IF(ФОРМА!F70=\"\",\"\",ФОРМА!F70)","v":""},{"$f":"IF(ФОРМА!G70=\"\",\"\",ФОРМА!G70)","v":""},{"$f":"IF(ФОРМА!H70=\"\",\"\",ФОРМА!H70)","v":""},{"$f":"IF(ФОРМА!I70=\"\",\"\",ФОРМА!I70)","v":""},{"$f":"IF(ФОРМА!J70=\"\",\"\",ФОРМА!J70)","v":""},{"$f":"IF(ФОРМА!K70=\"\",\"\",ФОРМА!K70)","v":""},{"$f":"IF(ФОРМА!L70=\"\",\"\",ФОРМА!L70)","v":""},{"$f":"IF(ФОРМА!M70=\"\",\"\",ФОРМА!M70)","v":""},{"$f":"IF(ФОРМА!N70=\"\",\"\",ФОРМА!N70)","v":""}]
[{"$f":"IF(ФОРМА!B71=\"\",\"\",ФОРМА!B71)","v":""},{"$f":"IF(ФОРМА!C71=\"\",\"\",ФОРМА!C71)","v":""},{"$f":"IF(ФОРМА!E71=\"\",\"\",ФОРМА!E71)","v":""},{"$f":"IF(ФОРМА!F71=\"\",\"\",ФОРМА!F71)","v":""},{"$f":"IF(ФОРМА!G71=\"\",\"\",ФОРМА!G71)","v":""},{"$f":"IF(ФОРМА!H71=\"\",\"\",ФОРМА!H71)","v":""},{"$f":"IF(ФОРМА!I71=\"\",\"\",ФОРМА!I71)","v":""},{"$f":"IF(ФОРМА!J71=\"\",\"\",ФОРМА!J71)","v":""},{"$f":"IF(ФОРМА!K71=\"\",\"\",ФОРМА!K71)","v":""},{"$f":"IF(ФОРМА!L71=\"\",\"\",ФОРМА!L71)","v":""},{"$f":"IF(ФОРМА!M71=\"\",\"\",ФОРМА!M71)","v":""},{"$f":"IF(ФОРМА!N71=\"\",\"\",ФОРМА!N71)","v":""}]
["Итого (час.)",null,{"$f":"IF(SUM(C13:C22)=0,\"\",SUM(C13:C22))","v":""},{"$f":"IF(SUM(D13:D22)=0,\"\",SUM(D13:D22))","v":""},"","","","","","","",{"$f":"SUM(L13:L22)","v":0}]
["Цена за ед. оказываемых услуг, руб.",null,{"$f":"ФОРМА!D50","v":0}]
["Сумма вознаграждения, включая НДФЛ, руб.",null,{"$f":"ROUND(L23*ФОРМА!D44,2)","v":0}]
["Общая стоимость услуг, руб.",null,{"$f":"ROUND(ФОРМА!D50*АКТ!L23,2)","v":0}]
[]
["1. Заказчик оплачивает вознаграждение за оказанные услуги в размере"]
[{"$f":"ROUND(C25*0.87,2)","v":0},{"$f":"'222'!Q6","v":"(Нол) руб. 00 коп."}]
["удержав НДФЛ по ставке 13% на основании п. 1, 2, 4, 6 ст. 226 НК РФ в размере",null,null,null,{"$f":"'222'!N7","v":0},null,"руб."]
[]
["2. Взносы в государственные внебюджетные фонды, перечисляемые Заказчиком в соответствии с действующим законодательством Российской Федерации по договору с физическим лицом в соответствии с законодательством РФ в размере"]
[{"$f":"'222'!N8","v":0},"руб."]
["3. Настоящий акт составлен и подписан в 2 экземплярах, имеющих одинаковую юридическую силу, по одному экземпляру для каждой из сторон."]
["4. Источником финансирования оказанных услуг являются внебюджетные средства. Смета № ________________."]
[]
[null,"ЗАКАЗЧИК",null,null,null,"ИСПОЛНИТЕЛЬ"]
[]
["Ректор СПбГУПТД"]
[]
["___________________________  А.В. Демидов",null,null,null,{"$f":"\"________________ \"&LEFT(ФОРМА!E3,1)&\".\"&LEFT(ФОРМА!F3,1)&\". \"&ФОРМА!D3","v":"________________ .. "}]
[]
["Первый проректор, проректор по УР СПбГУПТД"]
[]
["___________________________ А.Е. Рудин"]
[]
["Руководитель направления финансового планирования"]
[]
["___________________________ С.А. Андреева"]
[]
["Главный бухгалтер СПбГУПТД"]
[]
["___________________________  С.А. Игумнова"]
[]
[{"$f":"ФОРМА!D46","v":0}]
[]
[{"$f":"\"___________________________  \"&ФОРМА!D47","v":"___________________________  "}]

{"sheet":"222","index":5,"n_rows":14,"n_cols":17,"rows_kept":14,"cut":false,"hidden":true,"merged":[[0,12,0,13]]}
["месяц",null,null,{"$f":"#REF!","v":{"$error":"#REF!"}},"Сумма прописью",{"$f":"#REF!-D1","v":{"$error":"#REF!"}},"Сумма прописью",null,"Единицы измерения",null,{"$f":"ФОРМА!D3&\" \"","v":" "},null,"Расчет нового акта"]
["января","январе",null,null,{"$f":"СУММАПРОПИСЬЮ('222'!D1)","v":{"$error":"#VALUE!"}},null,{"$f":"СУММАПРОПИСЬЮ('222'!F1)","v":{"$error":"#VALUE!"}},null,null,null,{"$f":"LEFT(ФОРМА!E3,1)&\".\"","v":"."},null,"Цена за ед., руб.",{"$f":"ФОРМА!D50","v":0}]
["февраля","феврале",null,null,{"$f":"\"(\"&UPPER(LEFT(E2,1))&MID(E2,2,LEN(E2)-2)&\")\"","v":{"$error":"#VALUE!"}},null,{"$f":"\"(\"&UPPER(LEFT(G2,1))&MID(G2,2,LEN(G2)-2)&\")\"","v":{"$error":"#VALUE!"}},null,"час",null,{"$f":"LEFT(ФОРМА!F3,1)&\".\"","v":"."},null,"Сумма вознаграждения, включая НДФЛ, руб.",{"$f":"ROUND(ФОРМА!N72*ФОРМА!D44,2)","v":0}]
["марта","марте",null,null,{"$f":"E3&\" руб. \"&TEXT((D1-INT(D1))*100,\"00\")&\" коп.\"","v":{"$error":"#VALUE!"}},null,{"$f":"G3&\" руб. \"&TEXT((F1-INT(F1))*100,\"00\")&\" коп.\"","v":{"$error":"#VALUE!"}},null,"усл.ед.",null,null,null,"Взносы в государственные внебюджетные фонды, руб.",{"$f":"ROUND(N3*0.3,2)","v":0}]
["апреля","апреле",null,null,null,null,null,null,null,null,null,null,"Общая стоимость услуг, руб.",{"$f":"ROUND(ФОРМА!N72*ФОРМА!D50,2)","v":0}]
["мая","мае",null,{"$f":"ФОРМА!D53","v":0},"Сумма прописью",{"$f":"ФОРМА!D51","v":0},"Сумма прописью",null,null,null,null,null,"1. Заказчик оплачивает вознаграждение за оказанные услуги в размере",{"$f":"ROUND(N3*0.87,2)","v":0},{"$f":"СУММАПРОПИСЬЮ('222'!N6)","v":"ноль"},{"$f":"\"(\"&UPPER(LEFT(O6,1))&MID(O6,2,LEN(O6)-2)&\")\"","v":"(Нол)"},{"$f":"P6&\" руб. \"&TEXT((N6-INT(N6))*100,\"00\")&\" коп.\"","v":"(Нол) руб. 00 коп."}]
["июня","июне",null,null,{"$f":"СУММАПРОПИСЬЮ('222'!D6)","v":"ноль"},null,{"$f":"СУММАПРОПИСЬЮ('222'!F6)","v":"ноль"},null,null,null,null,null,"удержав НДФЛ по ставке 13% на основании п. 1, 2, 4, 6 ст. 226 НК РФ в размере",{"$f":"ROUND(N3-N6,2)","v":0}]
["июля","июле",null,null,{"$f":"\"(\"&UPPER(LEFT(E7,1))&MID(E7,2,LEN(E7)-2)&\")\"","v":"(Нол)"},null,{"$f":"\"(\"&UPPER(LEFT(G7,1))&MID(G7,2,LEN(G7)-2)&\")\"","v":"(Нол)"},null,null,null,null,null,"2. Взносы в государственные внебюджетные фонды, перечисляемые Заказчиком в соответствии с действующим законодательством Российской Федерации по договору с физическим лицом в соответствии с законодательством РФ в размере",{"$f":"N4","v":0}]
["августа","августе",null,null,{"$f":"E8&\" руб. \"&TEXT((D6-INT(D6))*100,\"00\")&\" коп.\"","v":"(Нол) руб. 00 коп."},null,{"$f":"G8&\" руб. \"&TEXT((F6-INT(F6))*100,\"00\")&\" коп.\"","v":"(Нол) руб. 00 коп."}]
["сентября","сентябре"]
["октября","октябре",null,null,null,{"$f":"ФОРМА!D52","v":0},"Сумма прописью"]
["ноября","ноябре",null,null,null,null,{"$f":"СУММАПРОПИСЬЮ('222'!F11)","v":"ноль"}]
["декабря","декабре",null,null,null,null,{"$f":"\"(\"&UPPER(LEFT(G12,1))&MID(G12,2,LEN(G12)-2)&\")\"","v":"(Нол)"}]
[null,null,null,null,null,null,{"$f":"G13&\" руб. \"&TEXT((F11-INT(F11))*100,\"00\")&\" коп.\"","v":"(Нол) руб. 00 коп."}]

{"sheet":"Лист1","index":6,"n_rows":1,"n_cols":1,"rows_kept":1,"cut":false,"hidden":true,"merged":[]}
["* Включает сумму вознаграждения по договору, включая НДФЛ (13%), который Заказчик, являясь налоговым агентом, удерживает и перечисляет в бюджет, а также взносы в государственные внебюджетные фонды, перечисляемые Заказчиком в соответствии с действующим законодательством Российской Федерации (30%)"]